bitfinex/quotes_SOLUSD_20250901
["timestamp","ask_amount","ask_price","bid_price","bid_amount"]
[1756756548017,0.06,200.38,200.37,58.96621109]
[1756756548542,0.06,200.38,200.37,138.84621106]
[1756756550312,0.06,200.38,200.37,141.52978903]
[1756756550712,0.74,200.38,200.37,138.84621106]
[1756756555343,0.06,200.38,200.37,138.84621106]
[1756756557924,0.06,200.38,200.37,100.46621106]
[1756756558249,0.06,200.38,200.37,138.84621106]
[1756756563858,0.74,200.38,200.37,138.82621106]
[1756756567660,0.06,200.38,200.37,138.82621106]
[1756756568251,0.74,200.38,200.37,138.82621106]
[1756756570462,0.74,200.38,200.37,100.46621106]
[1756756570671,0.74,200.38,200.37,138.82621106]
[1756756571753,0.74,200.38,200.36,0.03]
[1756756571952,0.74,200.38,200.37,38.36]
[1756756577590,5.73051801,200.38,200.37,38.36]
[1756756577870,5.73051801,200.38,200.36,0.03]
[1756756578075,5.73051801,200.38,200.37,38.36]
[1756756578251,0.74,200.38,200.37,38.36]
[1756756578447,0.74,200.38,200.36,0.03]
[1756756578755,0.74,200.38,200.37,38.36]
[1756756590478,0.06,200.38,200.37,52.65559401]
[1756756591073,0.06,200.38,200.37,57.64636109]
[1756756593482,0.06,200.38,200.37,56.94636109]
[1756756597780,0.06,200.38,200.37,57.66636109]
[1756756601293,0.06,200.38,200.37,56.94636109]
[1756756605394,0.06,200.38,200.37,18.58636109]
[1756756605598,0.72,200.38,200.37,51.95559401]
[1756756605897,0.72,200.38,200.36,79.90999997]
[1756756606199,0.06,200.38,200.37,38.36]
[1756756606698,0.72,200.38,200.37,38.36]
[1756756609605,0.72,200.38,200.36,0.03]
[1756756609805,0.72,200.38,200.37,38.36]
[1756756613113,5.71051801,200.38,200.37,38.36]
[1756756616016,20.71689601,200.38,200.37,38.36]
[1756756620505,20.71689601,200.38,200.36,0.03]
[1756756620710,20.71689601,200.38,200.36,38.37]
[1756756620890,0.66,200.37,200.36,38.37]
[1756756621513,0.66,200.37,200.36,0.03]
[1756756622016,7.65171708,200.37,200.36,0.03]
[1756756630605,7.71171708,200.37,200.36,0.03]
[1756756640630,26.0,200.34,200.33,0.03]
[1756756641141,26.71,200.34,200.33,0.03]
[1756756641325,28.711451,200.34,200.33,0.03]
[1756756642733,33.70296542,200.34,200.33,0.03]
[1756756643120,32.99296542,200.34,200.33,0.03]
[1756756644423,33.70296542,200.34,200.33,0.03]
[1756756647342,32.99296542,200.34,200.33,0.03]
[1756756647728,32.99296542,200.34,200.33,0.73]
[1756756647934,32.99296542,200.34,200.33,0.03]
[1756756650743,33.70296542,200.34,200.33,0.03]
[1756756652953,32.99296542,200.34,200.33,0.03]
[1756756653854,33.70296542,200.34,200.33,0.03]
[1756756655254,32.99296542,200.34,200.33,0.03]
[1756756657452,33.69296542,200.34,200.33,0.03]
[1756756666464,32.99296542,200.34,200.33,0.03]
[1756756666643,33.69296542,200.34,200.33,0.03]
[1756756673366,37.89548598,200.34,200.33,0.03]
[1756756674062,37.89548598,200.34,200.33,1e-08]
[1756756676460,33.69296542,200.34,200.33,1e-08]
[1756756682269,32.99296542,200.34,200.33,1e-08]
[1756756682474,33.69296542,200.34,200.33,1e-08]
[1756756683391,37.20184473,200.34,200.33,0.66000001]
[1756756683593,32.99296542,200.34,200.33,1e-08]
[1756756685392,33.05296542,200.34,200.33,0.71000001]
[1756756685796,33.05296542,200.34,200.33,1e-08]
[1756756688286,33.71296542,200.34,200.33,1e-08]
[1756756692975,33.05296542,200.34,200.33,1e-08]
[1756756693597,7.05296542,200.34,200.33,0.71000001]
[1756756693808,2.061451,200.34,200.33,0.71000001]
[1756756694005,0.06,200.34,200.33,0.71000001]
[1756756695877,0.06,200.34,200.33,2.71095001]
[1756756696103,0.06,200.34,200.33,0.71000001]
[1756756698299,0.06,200.34,200.33,19.29735761]
[1756756698691,0.06,200.34,200.33,14.30559402]
[1756756698874,0.06,200.34,200.33,19.29735761]
[1756756701580,0.06,200.34,200.33,21.29810861]
[1756756704608,0.06,200.34,200.33,103.86168655]
[1756756706696,0.06,200.34,200.33,129.86168655]
[1756756709503,0.06,200.34,200.33,127.17810858]
[1756756709699,0.06,200.34,200.33,165.47810858]
[1756756709989,0.06,200.34,200.33,129.86168655]
[1756756710307,0.06,200.34,200.33,168.16168655]
[1756756716721,0.06,200.34,200.33,168.11168655]
[1756756721707,0.06,200.34,200.33,142.11168655]
[1756756722217,0.06,200.36,200.35,39.59559401]
[1756756722420,0.06,200.36,200.35,80.55917198]
[1756756722612,0.06,200.36,200.35,81.23917198]
[1756756722814,0.06,200.36,200.35,163.11942195]
[1756756723016,0.06,200.36,200.35,168.11068723]
[1756756728732,0.06,200.37,200.36,13.59559401]
[1756756728914,1e-08,200.38,200.37,16.27917198]
[1756756729120,1e-08,200.38,200.37,55.23917198]
[1756756729817,0.06,200.39,200.37,55.23917198]
[1756756729818,0.71,200.48,200.42,13.59559401]
[1756756730014,16.6527931,200.57,200.45,42.27917198]
[1756756730015,42.6527931,200.57,200.45,42.27917198]
[1756756730211,42.6527931,200.57,200.45,77.87559401]
[1756756730212,1.99935,200.56,200.45,77.87559401]
[1756756730532,4.07511335,200.54,200.45,92.87072001]
[1756756730718,0.74626848,200.46,200.45,92.87072001]
[1756756730918,0.74626848,200.46,200.45,54.59072001]
[1756756731126,0.74626848,200.46,200.45,92.85072001]
[1756756731836,0.74626848,200.46,200.45,54.59072001]
[1756756732048,0.74626848,200.46,200.45,92.85072001]
[1756756732331,0.74626848,200.46,200.45,28.59072001]
[1756756732524,0.74626848,200.46,200.45,66.85072001]
[1756756735335,0.74626848,200.46,200.45,146.73071998]
[1756756736227,0.74626848,200.46,200.45,108.47071998]
[1756756736735,0.74626848,200.46,200.45,146.73071998]
[1756756737537,0.80626848,200.46,200.45,146.73071998]
[1756756739642,0.80626848,200.46,200.45,93.47559398]
[1756756739838,0.80626848,200.46,200.45,131.73559398]
[1756756741322,0.80626848,200.46,200.45,51.85559401]
[1756756742821,0.68068268,200.46,200.45,51.85559401]
[1756756744030,0.06,200.46,200.45,51.85559401]
[1756756744826,0.77,200.46,200.45,51.85559401]
[1756756745542,0.06,200.46,200.45,51.85559401]
[1756756746521,0.06,200.46,200.45,53.85504401]
[1756756747124,0.06,200.46,200.45,138.72381923]
[1756756750127,0.06,200.46,200.45,142.1273972]
[1756756752952,0.06,200.46,200.45,103.8673972]
[1756756753262,0.06,200.46,200.45,142.1073972]
[1756756753436,0.06,200.46,200.45,103.8673972]
[1756756753636,0.06,200.46,200.45,142.1073972]
[1756756754960,0.06,200.46,200.45,141.3873972]
[1756756755866,0.06,200.46,200.45,141.4173972]
[1756756757450,0.06,200.46,200.45,103.1773972]
[1756756757657,0.06,200.46,200.45,141.4173972]
[1756756757965,0.06,200.46,200.45,100.49381923]
[1756756758262,0.74,200.46,200.45,131.74559398]
[1756756758769,0.74,200.46,200.45,93.50559398]
[1756756759064,0.74,200.46,200.45,131.74559398]
[1756756763401,0.74,200.46,200.45,93.50559398]
[1756756763691,0.74,200.46,200.45,131.74559398]
[1756756765200,0.74,200.46,200.45,51.86559401]
[1756756770206,0.06,200.46,200.45,51.86559401]
[1756756771088,0.06,200.46,200.45,56.85436926]
[1756756771796,0.06,200.46,200.45,57.57436926]
[1756756772006,0.06,200.46,200.45,59.57381926]
[1756756772600,0.06,200.46,200.45,58.85381926]
[1756756775513,0.74,200.46,200.45,56.85436926]
[1756756776695,0.74,200.46,200.45,13.62559401]
[1756756776903,0.74,200.46,200.45,131.74559398]
[1756756779803,0.06,200.46,200.45,136.73436923]
[1756756780705,0.74,200.46,200.45,136.73436923]
[1756756783519,0.06,200.46,200.45,136.73436923]
[1756756783904,0.74,200.46,200.45,131.74559398]
[1756756784522,0.74,200.46,200.45,79.90999997]
[1756756784737,0.74,200.46,200.45,118.14999997]
[1756756786725,0.06,200.46,200.45,136.73436923]
[1756756788228,0.06,200.46,200.45,138.73381923]
[1756756788516,0.06,200.46,200.45,139.41381923]
[1756756788702,0.06,200.46,200.45,142.0973972]
[1756756788903,0.06,200.46,200.45,139.41381923]
[1756756789817,0.06,200.46,200.45,138.73381923]
[1756756791725,0.06,200.46,200.45,58.85381926]
[1756756792422,0.06,200.46,200.45,62.21739723]
[1756756792819,0.06,200.46,200.45,59.53381926]
[1756756793016,0.06,200.46,200.45,62.21739723]
[1756756794427,0.06,200.46,200.45,59.53381926]
[1756756794829,0.06,200.46,200.45,58.85381926]
[1756756796210,0.06,200.46,200.45,59.53381926]
[1756756797524,0.06,200.46,200.45,139.41381923]
[1756756798727,0.06,200.46,200.45,138.73381923]
[1756756799531,0.06,200.46,200.45,100.49381923]
[1756756799705,0.74,200.46,200.45,138.71381923]
[1756756799913,0.06,200.46,200.45,138.71381923]
[1756756800113,0.06,200.46,200.45,139.39381923]
[1756756801014,0.06,200.46,200.45,138.71381923]
[1756756801224,0.06,200.46,200.45,142.0773972]
[1756756801818,0.74,200.46,200.45,133.72504398]
[1756756802134,0.74,200.46,200.45,138.71381923]
[1756756802321,0.06,200.46,200.45,138.71381923]
[1756756802522,0.74,200.46,200.45,138.71381923]
[1756756802815,0.74,200.46,200.45,0.03]
[1756756803021,0.74,200.46,200.45,38.25]
[1756756803222,0.74,200.46,200.45,51.84559401]
[1756756803824,0.74,200.46,200.45,0.03]
[1756756804029,5.72852638,200.46,200.45,38.25]
[1756756804908,9.09770869,200.46,200.45,38.25]
[1756756805614,4.10918231,200.46,200.45,38.25]
[1756756805808,0.74,200.46,200.45,38.25]
[1756756806330,4.10918231,200.46,200.45,38.25]
[1756756806512,0.74,200.46,200.45,38.25]
[1756756806934,4.10918231,200.46,200.45,38.25]
[1756756807443,0.74,200.46,200.45,38.25]
[1756756807619,0.06,200.46,200.45,57.50436926]
[1756756808129,0.06,200.46,200.45,56.83436926]
[1756756809128,0.06,200.46,200.45,57.50436926]
[1756756809317,0.06,200.46,200.45,56.83436926]
[1756756809719,0.73,200.46,200.45,13.62559401]
[1756756810026,0.73,200.46,200.45,51.84559401]
[1756756810727,0.06,200.46,200.45,51.84559401]
[1756756811650,0.06,200.46,200.45,13.62559401]
[1756756811940,0.73,200.46,200.45,13.62559401]
[1756756812242,0.73,200.46,200.45,56.83436926]
[1756756812243,0.06,200.46,200.45,56.83436926]
[1756756812624,0.06,200.46,200.45,56.83318101]
[1756756813023,0.73,200.46,200.45,56.83318101]
[1756756813740,0.06,200.46,200.45,18.61318101]
[1756756813944,0.73,200.46,200.45,51.84559401]
[1756756814342,0.73,200.46,200.45,13.62559401]
[1756756814546,0.73,200.46,200.45,51.84559401]
[1756756815120,0.73,200.46,200.45,0.03]
[1756756815320,0.73,200.46,200.45,38.25]
[1756756815747,5.71852638,200.46,200.45,38.29]
[1756756815945,9.08536838,200.46,200.45,38.29]
[1756756816125,12.4522099,200.46,200.45,38.29]
[1756756816854,12.4522099,200.46,200.45,0.03]
[1756756820528,4.09684152,200.46,200.45,0.03]
[1756756820757,3.42684152,200.46,200.45,0.03]
[1756756820935,0.06,200.46,200.45,0.03]
[1756756822965,0.73,200.46,200.45,38.29]
[1756756824158,5.71852638,200.46,200.45,38.29]
[1756756826356,0.73,200.46,200.45,38.29]
[1756756826660,0.06,200.46,200.45,38.29]
[1756756828645,0.06,200.46,200.45,38.96]
[1756756829549,0.06,200.46,200.45,38.29]
[1756756830657,0.73,200.46,200.45,38.29]
[1756756831456,0.06,200.46,200.45,38.29]
[1756756832533,0.73,200.46,200.45,38.29]
[1756756834466,5.71852638,200.46,200.45,38.29]
[1756756834639,5.71852638,200.46,200.45,0.03]
[1756756834958,9.08080456,200.46,200.45,38.27]
[1756756836757,9.08080456,200.46,200.45,0.03]
[1756756837061,24.08192956,200.46,200.45,0.03]
[1756756840258,8.41080456,200.46,200.45,0.03]
[1756756841052,9.08080456,200.46,200.45,0.03]
[1756756846465,8.41080456,200.46,200.45,0.03]
[1756756846885,3.42227818,200.46,200.45,0.03]
[1756756847167,3.42227818,200.46,200.45,0.74]
[1756756847373,0.06,200.46,200.45,0.74]
[1756756851581,0.06,200.46,200.45,39.0]
[1756756853673,0.06,200.46,200.45,38.29]
[1756756855664,0.06,200.46,200.45,38.27]
[1756756855868,3.42425566,200.46,200.45,38.27]
[1756756856166,4.09425566,200.46,200.45,0.03]
[1756756857780,9.08278204,200.46,200.45,0.03]
[1756756860568,13.28810161,200.46,200.45,0.03]
[1756756860768,15.28845161,200.46,200.45,0.03]
[1756756865908,11.08313204,200.46,200.45,0.03]
[1756756866273,10.41313204,200.46,200.45,0.03]
[1756756866581,11.08313204,200.46,200.45,0.03]
[1756756866786,9.08278204,200.46,200.45,0.03]
[1756756866977,13.28810161,200.46,200.45,0.03]
[1756756867571,9.08278204,200.46,200.45,0.03]
[1756756867977,11.08323204,200.46,200.45,0.03]
[1756756868973,15.28855161,200.46,200.45,0.03]
[1756756873009,15.28855161,200.46,200.45,1e-08]
[1756756873212,15.28855161,200.46,200.42,0.03]
[1756756873213,26.0,200.43,200.42,0.03]
[1756756873502,33.5694988,200.43,200.42,0.03]
[1756756873698,34.2394988,200.43,200.42,0.03]
[1756756873905,36.2401488,200.43,200.42,0.03]
[1756756874676,29.36425566,200.43,200.42,0.71]
[1756756874895,29.36425566,200.43,200.42,0.03]
[1756756875100,34.35352872,200.43,200.42,0.03]
[1756756876194,35.02352872,200.43,200.42,0.03]
[1756756880010,34.35352872,200.43,200.42,0.03]
[1756756880814,8.35352872,200.43,200.42,0.03]
[1756756881016,8.35352872,200.43,200.42,0.71]
[1756756881318,8.35352872,200.43,200.42,0.03]
[1756756883034,9.02352872,200.43,200.42,0.03]
[1756756883432,11.02427872,200.43,200.42,0.03]
[1756756886834,11.02427872,200.43,200.4,0.03]
[1756756887134,3.36425566,200.42,200.4,0.03]
[1756756887524,0.67,200.41,200.4,1e-08]
[1756756888126,4.03425566,200.41,200.4,1e-08]
[1756756888325,2.670851,200.41,200.4,1e-08]
[1756756888514,6.03510666,200.41,200.4,1e-08]
[1756756888713,11.02487762,200.41,200.4,1e-08]
[1756756890239,11.02110285,200.41,200.4,1e-08]
[1756756890614,48.63110285,200.41,200.4,1e-08]
[1756756890826,10.35110285,200.41,200.4,1e-08]
[1756756891215,8.35025185,200.41,200.4,1e-08]
[1756756891721,8.35025185,200.41,200.4,0.68000001]
[1756756892024,8.35025185,200.41,200.4,1e-08]
[1756756893435,9.02025185,200.41,200.4,1e-08]
[1756756895843,8.35025185,200.41,200.4,1e-08]
[1756756898150,9.06025185,200.41,200.4,1e-08]
[1756756898729,13.26085296,200.41,200.4,1e-08]
[1756756898931,47.32025185,200.41,200.4,1e-08]
[1756756899336,49.32120285,200.41,200.4,1e-08]
[1756756900339,53.52180396,200.41,200.4,1e-08]
[1756756900681,62.91679686,200.41,200.4,1e-08]
[1756756900956,26.0,200.38,200.34,0.03]
[1756756901247,41.64048089,200.37,200.34,0.03]
[1756756901453,3.36048089,200.36,200.34,0.03]
[1756756902342,3.36048089,200.36,200.34,0.71]
[1756756902540,30.99101617,200.36,200.35,0.68]
[1756756902739,34.35149706,200.36,200.35,0.68]
[1756756904437,8.35149706,200.36,200.35,0.68]
[1756756904935,8.35149706,200.36,200.34,0.03]
[1756756904936,9.06149706,200.36,200.34,0.03]
[1756756905139,4.07048089,200.35,200.34,0.03]
[1756756906958,13.03364354,200.35,200.34,0.03]
[1756756908593,15.03499454,200.35,200.34,0.03]
[1756756911266,53.31499454,200.35,200.34,0.03]
[1756756911862,53.31499454,200.35,200.33,1e-08]
[1756756912075,3.36048089,200.34,200.33,1e-08]
[1756756912268,4.07048089,200.34,200.33,1e-08]
[1756756912987,6.07203189,200.34,200.33,1e-08]
[1756756913689,8.35199531,200.34,200.33,1e-08]
[1756756915285,9.06199531,200.34,200.33,1e-08]
[1756756915596,11.06354631,200.34,200.33,1e-08]
[1756756919597,37.06354631,200.34,200.33,1e-08]
[1756756920468,36.35354631,200.34,200.33,1e-08]
[1756756921005,74.61354631,200.34,200.33,1e-08]
[1756756922398,36.35354631,200.34,200.33,1e-08]
[1756756922794,34.35199531,200.34,200.33,0.68000001]
[1756756923094,34.35199531,200.34,200.33,1e-08]
[1756756924792,30.07048089,200.34,200.33,1e-08]
[1756756924999,77.54763086,200.34,200.33,1e-08]
[1756756925493,73.34199531,200.34,200.33,1e-08]
[1756756925697,75.34364731,200.34,200.33,1e-08]
[1756756926401,75.40364731,200.34,200.33,1e-08]
[1756756928184,26.0,200.32,200.31,1e-08]
[1756756928394,67.64048089,200.32,200.29,0.03]
[1756756928599,8.25611644,200.31,200.29,0.03]
[1756756928792,46.63299212,200.3,200.29,0.03]
[1756756928984,47.32299212,200.3,200.29,0.03]
[1756756929299,47.32299212,200.3,200.28,0.03]
[1756756929483,3.36048089,200.29,200.28,0.03]
[1756756929812,3.36048089,200.29,200.28,1e-08]
[1756756929985,6.05273289,200.29,200.28,1e-08]
[1756756931191,11.04549338,200.29,200.28,1e-08]
[1756756932184,48.63549338,200.29,200.28,1e-08]
[1756756934279,36.35549338,200.29,200.28,1e-08]
[1756756934485,74.63549338,200.29,200.28,0.66000001]
[1756756934890,74.63549338,200.29,200.28,1e-08]
[1756756936097,75.32549338,200.29,200.28,1e-08]
[1756756936301,49.32549338,200.29,200.28,1e-08]
[1756756939910,53.53112893,200.29,200.28,1e-08]
[1756756940285,49.32549338,200.29,200.28,1e-08]
[1756756940486,53.53112893,200.29,200.28,1e-08]
[1756756941887,26.0,200.25,200.24,0.2]
[1756756942088,67.64048089,200.25,200.24,0.2]
[1756756942288,68.33048089,200.25,200.24,0.2]
[1756756942488,70.33303389,200.25,200.24,0.2]
[1756756942818,70.33303389,200.25,200.24,1e-08]
[1756756943197,70.33303389,200.25,200.23,1e-08]
[1756756943397,3.36048089,200.24,200.23,1e-08]
[1756756943610,42.35048089,200.24,200.23,1e-08]
[1756756944517,47.34448808,200.24,200.23,1e-08]
[1756756944894,47.34448808,200.24,200.22,1e-08]
[1756756945118,3.36048089,200.23,200.22,1e-08]
[1756756945504,5.36343489,200.23,200.21,1e-08]
[1756756945795,38.99,200.22,200.21,1e-08]
[1756756946020,42.35048089,200.22,200.21,1e-08]
[1756756946604,10.35794093,200.22,200.21,1e-08]
[1756756946805,48.65794093,200.22,200.21,1e-08]
[1756756947308,49.34794093,200.22,200.21,1e-08]
[1756756947512,48.65794093,200.22,200.21,1e-08]
[1756756948624,36.35794093,200.22,200.21,0.66000001]
[1756756950036,36.35794093,200.22,200.21,1e-08]
[1756756950604,11.04794093,200.22,200.21,1e-08]
[1756756951530,26.0,200.21,200.2,1e-08]
[1756756951704,68.33048089,200.21,200.2,1e-08]
[1756756952515,73.32523639,200.21,200.2,1e-08]
[1756756952718,73.32523639,200.21,200.17,0.03]
[1756756953026,3.36048089,200.2,200.17,0.03]
[1756756953231,38.42,200.19,200.17,0.03]
[1756756953415,3.36048089,200.18,200.17,0.03]
[1756756953608,4.05048089,200.18,200.17,0.03]
[1756756954028,32.05373689,200.18,200.17,0.03]
[1756756954727,37.04924093,200.18,200.17,0.03]
[1756756954921,36.35924093,200.18,200.17,0.03]
[1756756955118,74.79924093,200.18,200.17,0.03]
[1756756957519,75.47924093,200.18,200.17,0.03]
[1756756957940,37.03924093,200.18,200.17,0.03]
[1756756958116,75.45924093,200.18,200.17,0.03]
[1756756958517,49.45924093,200.18,200.16,0.03]
[1756756958727,3.36048089,200.17,200.16,0.03]
[1756756959035,4.04048089,200.17,200.16,0.03]
[1756756959235,4.99550404,200.18,200.16,0.03]
[1756756959632,53.505919,200.17,200.16,0.03]
[1756756960841,58.5016726,200.17,200.16,0.03]
[1756756962727,58.5616726,200.17,200.16,0.03]
[1756756963213,61.90847587,200.17,200.16,0.03]
[1756756964145,62.58847587,200.17,200.16,0.03]
[1756756964746,61.90847587,200.17,200.16,0.03]
[1756756964913,62.58847587,200.17,200.16,0.03]
[1756756966943,62.56847587,200.17,200.16,0.03]
[1756756967525,62.56847587,200.17,200.13,0.03]
[1756756967526,26.0,200.14,200.13,0.03]
[1756756967726,67.86680327,200.14,200.13,0.03]
[1756756967925,68.54680327,200.14,200.13,0.03]
[1756756968148,70.55046027,200.14,200.13,0.03]
[1756756970228,75.54696271,200.14,200.13,0.03]
[1756756970429,75.54696271,200.14,200.11,0.03]
[1756756970650,3.35058146,200.13,200.07,0.2]
[1756756970850,26.0,200.09,200.07,0.2]
[1756756971153,64.52,200.09,200.07,0.2]
[1756756971556,65.2,200.09,200.07,0.2]
[1756756971847,82.81061435,200.09,200.07,0.2]
[1756756972230,4.99800079,200.08,200.07,0.2]
[1756756973027,14.18716579,200.08,200.07,0.2]
[1756756973436,8.34924411,200.08,200.07,0.2]
[1756756973645,4.99800079,200.08,200.07,0.2]
[1756756976756,36.67792979,200.08,200.07,0.2]
[1756756976969,35.99792979,200.08,200.07,0.2]
[1756756977144,74.49792979,200.08,200.07,0.2]
[1756756977549,35.99792979,200.08,200.07,0.2]
[1756756977761,74.49792979,200.08,200.07,0.2]
[1756756979866,75.17792979,200.08,200.07,0.2]
[1756756981026,36.67792979,200.08,200.07,0.2]
[1756756981231,78.5302557,200.08,200.07,0.2]
[1756756982153,78.5102557,200.08,200.07,0.2]
[1756756982535,77.8302557,200.08,200.07,0.2]
[1756756982734,39.3502557,200.08,200.07,0.2]
[1756756982934,77.8302557,200.08,200.07,0.2]
[1756756983348,74.47792979,200.08,200.07,0.2]
[1756756983678,30.99800079,200.08,200.07,0.86]
[1756756983880,4.99778517,200.09,200.07,0.86]
[1756756984467,8.95638576,200.09,200.07,0.86]
[1756756984660,4.99778517,200.09,200.07,0.86]
[1756756985152,11.10942435,200.09,200.07,0.2]
[1756756985978,11.79942435,200.09,200.07,0.2]
[1756756986672,3.35614205,200.08,200.07,0.2]
[1756756986896,4.04614205,200.08,200.07,0.2]
[1756756987053,3.35614205,200.08,200.07,0.2]
[1756756988066,8.35414284,200.08,200.07,0.2]
[1756756988871,8.35414284,200.08,200.07,0.92]
[1756756989584,8.35414284,200.08,200.07,0.2]
[1756756991870,4.99675211,200.13,200.07,0.92]
[1756756992083,3.35870368,200.12,200.08,0.72]
[1756756992285,3.35870368,200.12,200.07,0.2]
[1756756992461,3.35870368,200.13,200.09,0.72]
[1756756992662,3.35870368,200.15,200.09,5.7177385]
[1756756992969,8.41446567,200.17,200.1,0.72]
[1756756993180,3.35870368,200.16,200.1,0.72]
[1756756994367,3.35870368,200.16,200.11,13.59559401]
[1756756994568,3.41870368,200.17,200.12,5.71700179]
[1756756994763,0.06,200.17,200.13,0.72]
[1756756999672,0.06,200.17,200.16,13.59559401]
[1756756999868,0.06,200.17,200.16,18.50431466]
[1756757000295,0.06,200.17,200.16,14.31559401]
[1756757000475,0.06,200.17,200.16,18.50431466]
[1756757001795,0.06,200.17,200.16,129.80031785]
[1756757002906,0.06,200.17,200.16,131.80236985]
[1756757003475,0.06,200.17,200.16,170.22236985]
[1756757004297,0.06,200.17,200.16,144.22236985]
[1756757005006,1e-08,200.17,200.16,144.22236985]
[1756757005186,1e-08,200.17,200.16,63.92236985]
[1756757005376,1e-08,200.17,200.16,64.42197016]
[1756757006303,1e-08,200.17,200.16,21.81324951]
[1756757006518,1e-08,200.17,200.16,64.40197016]
[1756757008301,1e-08,200.17,200.16,144.70197016]
[1756757008504,1e-08,200.17,200.16,144.20236985]
[1756757009308,1e-08,200.17,200.16,144.18236985]
[1756757010607,0.06,200.2,200.19,13.59559401]
[1756757010818,0.06,200.2,200.19,136.9638401]
[1756757010979,0.06,200.2,200.19,137.18431465]
[1756757011175,0.06,200.2,200.19,139.18586565]
[1756757011481,0.06,200.22,200.21,39.59559401]
[1756757011690,0.06,200.22,200.21,44.28379021]
[1756757011895,0.06,200.22,200.21,45.00379021]
[1756757012203,0.06,200.22,200.21,47.00514121]
[1756757012499,0.06,200.22,200.21,51.99989671]
[1756757013892,0.06,200.22,200.21,90.35989671]
[1756757016907,0.06,200.25,200.24,39.59559401]
[1756757017204,0.06,200.25,200.24,162.92371536]
[1756757017426,0.06,200.25,200.24,167.41832184]
[1756757017588,0.06,200.25,200.24,131.07957284]
[1756757017791,0.06,200.25,200.24,169.41957284]
[1756757020710,0.06,200.25,200.24,169.39957284]
[1756757021823,0.06,200.25,200.24,170.11957284]
[1756757022988,0.06,200.25,200.24,169.39957284]
[1756757024832,0.06,200.25,200.24,170.11957284]
[1756757027918,0.06,200.29,200.28,13.59559401]
[1756757028223,0.06,200.29,200.28,56.58361563]
[1756757028607,0.06,200.29,200.28,54.39564498]
[1756757028798,0.06,200.29,200.28,58.58436563]
[1756757029417,0.06,200.29,200.28,59.30436563]
[1756757029614,0.06,200.29,200.28,63.57737541]
[1756757030125,0.74,200.29,200.28,63.57737541]
[1756757030728,0.06,200.29,200.28,63.57737541]
[1756757031416,0.06,200.29,200.28,25.27737541]
[1756757031736,0.06,200.29,200.28,63.57737541]
[1756757031924,0.06,200.29,200.28,143.81737539]
[1756757032116,0.06,200.29,200.28,143.31807442]
[1756757035419,0.74,200.29,200.28,143.31807442]
[1756757035614,0.74,200.29,200.28,139.12935377]
[1756757035933,0.74,200.29,200.28,143.31807442]
[1756757036735,0.74,200.29,200.28,105.01807442]
[1756757036926,0.74,200.29,200.28,143.31807442]
[1756757037233,0.24,200.29,200.28,143.31807442]
[1756757039130,0.24,200.29,200.28,105.01807442]
[1756757039332,0.24,200.29,200.28,95.83634399]
[1756757039630,0.24,200.29,200.28,132.13559399]
[1756757041142,0.24,200.29,200.28,13.59559401]
[1756757041351,0.24,200.29,200.28,51.89559401]
[1756757041550,0.24,200.29,200.28,56.88860379]
[1756757041744,0.06,200.32,200.28,61.79732444]
[1756757041911,0.06,200.32,200.29,4.90872065]
[1756757042108,0.06,200.32,200.31,13.59559401]
[1756757042340,0.74,200.32,200.31,13.59559401]
[1756757043638,0.06,200.32,200.31,13.59559401]
[1756757043933,0.06,200.34,200.31,13.59559401]
[1756757044132,0.06,200.34,200.32,38.34]